Cogmind - Beta 11 X9 @@@ ROGUE MODE // 2022.01.16 @ 06:54:11 Player: leiavoia Result: Destroyed by Lightning with EMDS Performance ------------- Evolutions (5) 2500 Regions Visited (16) 3200 Robots Destroyed (220) 1100 Value Destroyed (8447) 8447 Prototype IDs (25) 500 Alien Tech Used (0) 0 Bonus (3513) 3513 TOTAL SCORE: 19260 Bonus ------- High Alert Combat Kills 733 Follower Combat Kills 1423 Entered DSFs 500 Network Hubs Disabled 400 Met Data Miner 300 Built Enhanced Grunts 300 Met R17 at Cetus 500 Friendly Fire -643 Cogmind --------- Core Integrity 0/1000 Matter 300/300 Energy 85/100 System Corruption 29% Temperature Cool (0) Movement Core (150) Ox2 Location -5/Hub_04(d) Parts ------- > --- POWER (1) -------- (None) > --- PROPULSION (6) --- Compact Wheel > --- UTILITY (7) ------ Hardened Medium Armor Plating Authchip [R/Combat] Authchip [R/Combat] > --- WEAPON (3) ------- (None) > --- INVENTORY (5) ---- Antimatter Reactor Authchip [R/Combat] Cooled Plasma Rifle Compact Ion Cannon Neutron Cannon Peak State ------------ > --- POWER ------------ Antimatter Reactor > --- PROPULSION ------- Heavy Treads Centrium Heavy Treads Centrium Heavy Treads > --- UTILITY ---------- Experimental Heat Sink Experimental Heat Sink Huge Storage Unit Targeting Computer Improved Weapon Cycler Centrium Medium Armor Plating Experimental Thermal Shield > --- WEAPON ----------- Neutron Cannon Magnetic Acceleration Cannon Mass Driver > --- INVENTORY -------- Quantum Reactor Centrium Heavy Treads Advanced Heat Sink Huge Storage Unit High-capacity Matter Pod Hardened Medium Armor Plating Hardened Heavy Armor Plating Authchip [R/Combat] Authchip [R/Combat] Authchip [R/Combat] Authchip [R/Combat] Dynamic Insulation System Long-range Tractor Beam Cooled Plasma Rifle Cooled Plasma Rifle Heavy Plasma Cannon Heavy Phase Cannon Heavy Phase Cannon Railgun Improved KE Penetrator Magnetic Acceleration Cannon Long-range Missile Launcher Phasing Sabre [Rating: 125] Favorites ----------- Power Heavy Ion Engine Engine Heavy Ion Engine Power Core Neutrino Core Reactor Antimatter Reactor Propulsion Armored Huge Wheel Treads Light Treads Leg Aluminum Leg Wheel Armored Huge Wheel Utility Huge Storage Unit Device Experimental Heat Sink Storage Huge Storage Unit Processor Targeting Computer Hackware Authchip [R/Combat] Protection Hardened Light Armor Plating Weapon Mini Assault Cannon Energy Gun Beam Rifle Energy Cannon Plasma Cannon Ballistic Gun Heavy Assault Rifle Ballistic Cannon Mini Assault Cannon Launcher Grenade Launcher Slashing Weapon Makeshift Axe Build | -11 -10 -9 -9 -8 -7 -7 -7 -7 -6 -6 -6 -5 -5 -5 -5 -5 ------- Run | Scr Mat Mat Min Mat Fac Low Low Dat Pro Fac DSF Fac Ext Cet Arc Hub Slots Evolved 10 | . . 2 . 2 2 . . . . 2 . 2 . . . . Power . | . . . . . . . . . . . . . . . . . Propulsion 4 | . . 1 . 1 1 . . . . 1 . . . . . . Utility 5 | . . 1 . . 1 . . . . 1 . 2 . . . . Weapon 1 | . . . . 1 . . . . . . . . . . . . Parts Attached 244 | . 1 37 4 15 44 1 6 2 10 4 28 15 33 8 2 34 Power 16 | . . 3 . . 4 . . . . . . 1 5 1 . 2 Engine 10 | . . 3 . . 4 . . . . . . . 3 . . . Core 1 | . . . . . . . . . . . . . 1 . . . Reactor 5 | . . . . . . . . . . . . 1 1 1 . 2 Propulsion 44 | . . 10 2 4 9 . 1 . 1 . 9 . 4 2 . 2 Treads 25 | . . 9 2 . 3 . 1 . . . 4 . 3 2 . 1 Leg 6 | . . . . 3 2 . . . 1 . . . . . . . Wheel 13 | . . 1 . 1 4 . . . . . 5 . 1 . . 1 Hover . | . . . . . . . . . . . . . . . . . Flight . | . . . . . . . . . . . . . . . . . Utility 106 | . 1 10 2 4 15 . 4 . 5 2 12 8 17 3 2 21 Device 62 | . 1 6 1 4 12 . 1 . 3 2 9 8 8 . 1 6 Storage 6 | . . 2 . . . . 1 . . . . . 1 . . 2 Processor 6 | . . 1 . . 2 . . . . . . . 2 1 . . Hackware 5 | . . . . . . . . . . . . . 1 . . 4 Protection 27 | . . 1 1 . 1 . 2 . 2 . 3 . 5 2 1 9 Artifact . | . . . . . . . . . . . . . . . . . Weapon 78 | . . 14 . 7 16 1 1 2 4 2 7 6 7 2 . 9 Energy Gun 17 | . . 11 . . 5 . . . . . . . . . . 1 Energy Cannon 19 | . . . . 1 1 . . 1 1 2 4 2 2 2 . 3 Ballistic Gun 12 | . . 2 . 4 2 . . . 1 . . 1 1 . . 1 Ballistic Cannon 11 | . . . . . 2 . . . 1 . 1 2 3 . . 2 Launcher 12 | . . 1 . 1 2 . 1 1 1 . 2 . 1 . . 2 Special Weapon . | . . . . . . . . . . . . . . . . . Impact Weapon . | . . . . . . . . . . . . . . . . . Slashing Weapon 7 | . . . . 1 4 1 . . . . . 1 . . . . Piercing Weapon . | . . . . . . . . . . . . . . . . . Special Melee Weapon . | . . . . . . . . . . . . . . . . . Unidentified Prototypes 12 | . . 2 . . 1 . . . 2 . . 1 . 2 . 4 Parts Lost 43 | . . 9 4 4 3 . . . 2 . 2 1 2 . . 16 Power 6 | . . 2 . . 1 . . . . . . . 1 . . 2 Propulsion 10 | . . 2 2 2 . . . . . . 2 . . . . 2 Utility 15 | . . 1 2 1 1 . . . . . . . 1 . . 9 Weapon 12 | . . 4 . 1 1 . . . 2 . . 1 . . . 3 Highest Loss Streak 14 | . . 3 3 2 1 . . . 1 . 1 1 1 . . 14 Average Slot Usage (%) 84 | . 99 98 99 98 86 76 75 62 75 73 70 70 72 80 82 73 Engine 6 | . 14 10 11 9 6 7 7 7 7 6 6 . 1 . . . Reactor 1 | . . . . . . . . . . . . 4 3 . 5 4 Treads 13 | . . 29 32 16 8 7 7 7 1 . 7 . 6 17 17 15 Leg 2 | . 28 2 . 8 2 . . . 5 6 1 . . . . . Wheel 7 | . . . . 9 14 15 15 15 15 13 8 17 10 . . . Device 12 | . 13 11 11 15 13 7 6 7 6 13 12 17 17 17 18 13 Storage 7 | . 14 11 11 9 7 7 7 7 7 6 6 5 4 5 5 4 Processor 2 | . . 2 . . 6 . . . . . . . 4 9 5 3 Protection 6 | . . 8 11 2 . 7 6 7 6 6 6 5 5 5 9 11 Energy Gun 7 | . 28 18 22 6 5 . . . . . . . . . . . Energy Cannon 4 | . . . . 6 3 7 7 . 7 6 11 5 4 10 11 6 Ballistic Gun 2 | . . 3 . 12 6 . . . 3 6 . 2 . . . . Ballistic Cannon 3 | . . . . . 3 7 1 . 3 6 5 5 6 5 5 8 Slashing Weapon 1 | . . . . . 1 7 7 7 1 . . 1 . . . . Naked Turns 30 | . . . . . . . . . . . . . . . . 30 Heaviest Build 262 | 14 15 100 100 103 129 130 234 234 244 248 248 262 261 143 140 148 Greatest Support 230 | 20 20 60 60 16 56 56 56 56 56 56 84 84 210 230 230 230 Greatest Overweight (x) 8 | . . 2 1 6 6 2 4 4 4 4 8 3 4 . . 2 Average Overweight (x) 1 | . . . 1 6 1 2 2 3 4 4 5 2 1 . . . Largest Inventory Capacity 35 | 8 8 25 25 25 25 25 35 35 35 35 35 35 35 25 25 25 Average Capacity 24 | 8 8 15 25 25 25 25 29 35 35 35 35 35 26 25 25 23 Most Carried 35 | 7 8 25 25 25 25 25 35 35 35 34 35 35 35 25 25 25 Average Carried 24 | 6 7 14 24 24 24 25 28 35 34 34 34 34 26 24 25 22 Final Capacity 35 | 8 8 25 25 25 25 25 35 35 35 35 35 35 25 25 25 5 Final Carried 35 | 7 8 25 25 25 25 25 35 35 35 34 35 35 25 25 25 5 Class Distribution -------------------- 26% | Scavenger-Mutant 17% | Mutant 14% | Hauler-Mutant 8% | Scavenger-Gunner 8% | Hauler-Tank 6% | Scavenger-Tank 5% | Scavenger-Skirmisher 4% | Skirmisher 4% | Gunner Dominant Class ---------------- Mutant | -10/Materials Scavenger-Mutant | -9/Materials Scavenger-Mutant | -9/Mines Scavenger-Skirmisher | -8/Materials Skirmisher | -7/Factory Mutant | -7/Lower Caves Mutant | -7/Lower Caves Hauler-Mutant | -7/Data Miner Hauler-Mutant | -6/Proximity Caves Hauler-Mutant | -6/Factory Hauler-Mutant | -6/DSF Hauler-Tank | -5/Factory Scavenger-Gunner | -5/Extension Scavenger-Gunner | -5/Cetus Scavenger-Tank | -5/Archives Scavenger-Tank | -5/Hub_04(d) Resources | -11 -10 -9 -9 -8 -7 -7 -7 -7 -6 -6 -6 -5 -5 -5 -5 -5 ----------- Run | Scr Mat Mat Min Mat Fac Low Low Dat Pro Fac DSF Fac Ext Cet Arc Hub Matter Collected 6015 | 200 10 490 220 294 890 64 146 . 678 . 453 315 1075 341 146 693 Remotely 1215 | . . . . . 651 . . . . . 386 . 178 . . . Salvage Created 8590 | 120 143 1725 157 334 993 46 14 . 954 . 471 371 1498 501 270 993 Parts 364 | 5 9 110 3 16 35 . 4 . 38 . 22 14 32 14 12 50 Haulers Intercepted 8 | . . 4 . . 1 . . . . . . . 1 . . 2 Recyclers Shooed 5 | 1 . 1 1 2 . . . . . . . . . . . . Parts Field Recycled . | . . . . . . . . . . . . . . . . . Retrieved Matter . | . . . . . . . . . . . . . . . . . Parts Self-Destructed 37 | . . . . . . . 6 . 31 . . . . . . . Prevented . | . . . . . . . . . . . . . . . . . Kills | -11 -10 -9 -9 -8 -7 -7 -7 -7 -6 -6 -6 -5 -5 -5 -5 -5 ------- Run | Scr Mat Mat Min Mat Fac Low Low Dat Pro Fac DSF Fac Ext Cet Arc Hub Combat Hostiles Destroyed 158 | . 2 35 3 9 20 . 3 . 27 . 12 8 18 9 2 10 Guns 51 | . . 28 3 4 10 . . . 5 . . 1 . . . . Cannons 58 | . . . . 2 5 . 1 . 6 . 11 5 13 8 1 6 AOE 39 | . 2 7 . 3 3 . 2 . 15 . . . 3 . . 4 Classes Destroyed 19 | 2 3 4 1 . 4 . . . 1 . 2 1 1 . . . Worker 17 | . . 1 1 . 1 . . . . . . . . . . 14 Builder 7 | . 1 2 . . 1 . . . . . . . . . . 3 Tunneler 1 | 1 . . . . . . . . . . . . . . . . Hauler 8 | . . 4 . . 1 . . . . . . . 1 . . 2 Recycler 12 | 1 . 3 . . 2 . . . . . . . 5 . . 1 Mechanic 1 | . . . . . 1 . . . . . . . . . . . Operator 7 | . . . . . 1 . . . . . . . . . 5 1 Watcher 7 | . 1 3 . . 1 . . . . . . . 1 . . 1 Swarmer 33 | . . 10 1 . 3 . 3 . 8 . 6 2 . . . . Grunt 73 | . 2 17 . 7 11 . . . 14 . 2 3 10 2 . 5 Brawler 3 | . . . . . . . . . . . . 1 . 1 . 1 Duelist 2 | . . . . . 2 . . . . . . . . . . . Sentry 23 | . . 8 . 2 3 . . . 3 . . 1 3 . 2 1 Demolisher 2 | . . . 2 . . . . . . . . . . . . . Specialist 2 | . . . . . . . . . 1 . 1 . . . . . Hunter 7 | . . . . . . . . . . . 2 . 1 2 . 2 Programmer 5 | . . . . . 1 . . . 1 . . 1 2 . . . Heavy 1 | . . . . . . . . . . . 1 . . . . . Behemoth 3 | . . . . . . . . . . . . . 2 . . 1 Cetus Guard 4 | . . . . . . . . . . . . . . 4 . . Thug 2 | . . . 2 . . . . . . . . . . . . . Best Kill Streak 14 | 2 3 9 2 3 6 . 3 . 14 . 4 2 6 7 5 12 Combat Bots Only 14 | . 2 5 2 3 5 . 3 . 14 . 4 2 4 7 2 4 Max Kills in Single Turn 11 | 1 2 5 2 1 2 . 1 . 3 . 2 1 3 1 1 11 Gunslinging . | . . . . . . . . . . . . . . . . . Exploded 4 | . 1 3 . 1 1 . 1 . 3 . . . 2 . . 4 Melee . | . . . . . . . . . . . . . . . . . Uniques/NPCs Destroyed . | . . . . . . . . . . . . . . . . . Combat | -11 -10 -9 -9 -8 -7 -7 -7 -7 -6 -6 -6 -5 -5 -5 -5 -5 -------- Run | Scr Mat Mat Min Mat Fac Low Low Dat Pro Fac DSF Fac Ext Cet Arc Hub Damage Taken 17565 | . 95 2070 568 648 1822 . 229 . 1265 . 1122 1203 2078 575 79 5811 Core 2049 | . 11 293 78 105 262 . . . 191 . 106 120 78 28 . 777 Absorbed by Shields 279 | . . . . . . . . . . . . . 142 137 . . Reduced by Siege Mode 262 | . . . . . . . . . . . . . 164 40 . 58 Core Remaining (%) 67 | 100 95 . 7 80 . . . . 35 . 87 . . . . . Volleys Fired 495 | 5 9 117 24 35 47 . 7 . 46 . 44 27 59 21 18 36 Largest 3 | 2 2 2 2 3 3 . 2 . 3 . 3 3 3 3 3 3 Hottest 270 | 80 80 121 121 156 185 . 110 . 171 . 270 244 203 253 245 245 Shots Fired 1107 | 10 18 215 48 93 132 . 9 . 78 . 92 74 127 61 51 99 Gun 483 | 10 18 212 48 64 89 . . . 19 . . 20 3 . . . Cannon 573 | . . . . 21 36 . 3 . 43 . 87 54 122 61 51 95 Launcher 51 | . . 3 . 8 7 . 6 . 16 . 5 . 2 . . 4 Special . | . . . . . . . . . . . . . . . . . Kinetic 463 | . . 58 . 51 71 . . . 36 . 23 50 70 31 18 55 Thermal 505 | . . 97 48 34 51 . 3 . 26 . 64 24 55 30 33 40 Explosive 51 | . . 3 . 8 7 . 6 . 16 . 5 . 2 . . 4 Electromagnetic 88 | 10 18 57 . . 3 . . . . . . . . . . . Robot Hit Streak 46 | 4 6 17 8 10 21 . 5 . 6 . 11 4 46 20 5 12 Robot Miss Streak 9 | 1 3 7 9 4 4 . 2 . 6 . 9 4 3 3 6 3 Penetration Max 1 | . . . . . 1 . . . 1 . . . 1 . . . Secondary Targets 4 | . . 3 . . 1 . . . . . . . . . . . Max Gunslinging Chain 1 | . . 1 . . 1 . . . . . . . . . . . Shots Hit Robots 734 | 7 11 145 35 61 109 2 6 . 39 . 47 34 98 47 28 65 Core Hits 463 | 3 5 97 32 30 58 . 7 . 50 . 21 13 39 19 17 72 Critical Kills 11 | . . . . . . . . . 3 . 1 1 4 1 1 . Critical Parts Destroyed 3 | . . 1 . . . . . . 1 . . 1 . . . . Critical Strikes 34 | . . 4 3 . 3 . . . 6 . 1 2 10 2 1 2 Burn 6 | . . 3 3 . . . . . . . . . . . . . Meltdown 9 | . . . . . . . . . 1 . 1 1 4 1 1 . Destroy 5 | . . 1 . . . . . . 3 . . 1 . . . . Blast 14 | . . . . . 3 . . . 2 . . . 6 1 . 2 Melee Attacks 38 | . . . . . 13 19 . . 2 . . 4 . . . . Impact . | . . . . . . . . . . . . . . . . . Slashing 38 | . . . . . 13 19 . . 2 . . 4 . . . . Piercing . | . . . . . . . . . . . . . . . . . Sneak Attacks 1 | . . . . . 1 . . . . . . . . . . . Combat Hostiles . | . . . . . . . . . . . . . . . . . Follow-up Attacks . | . . . . . . . . . . . . . . . . . Damage Inflicted 26390 | 121 323 2910 528 1375 3186 179 333 . 2405 . 1691 1027 4807 1613 1121 4771 Guns 5601 | 92 130 2033 528 628 1547 . . . 303 . . 244 96 . . . Cannons 12868 | . . . . 271 816 . 49 . 521 . 1506 783 4026 1613 1121 2162 Explosions 7554 | 29 193 861 . 476 725 . 284 . 1581 . 185 . 624 . . 2596 Melee 277 | . . . . . 98 179 . . . . . . . . . . Ramming 90 | . . 16 . . . . . . . . . . 61 . . 13 Kinetic 8601 | . . 482 . 487 1263 . . . 495 . 360 728 2637 809 380 960 Thermal 10180 | 29 193 1512 528 412 1090 . 49 . 429 . 1146 299 1746 804 741 1202 Explosive 5544 | . . 266 . 476 725 . 284 . 1481 . 185 . 363 . . 1764 Electromagnetic 1698 | 92 130 634 . . 10 . . . . . . . . . . 832 Impact . | . . . . . . . . . . . . . . . . . Slashing 277 | . . . . . 98 179 . . . . . . . . . . Piercing . | . . . . . . . . . . . . . . . . . Highest Corruption 28 | . 6 . . 1 5 5 5 5 5 . . 4 4 4 4 28 Average Corruption 4 | . 2 . . 1 5 5 5 5 5 . . 1 4 4 3 17 Corruption Purged 4 | . . . . . . . . . . . . . . . 4 . Effects 112 | . 3 . . . 5 15 17 1 25 . . 1 27 11 1 6 Message Errors 31 | . 1 . . . . 6 7 1 5 . . 1 4 4 . 2 Matter Fused 27 | . . . . . 2 6 2 . 8 . . . 7 1 . 1 Heat Flow Errors 19 | . 2 . . . 1 2 3 . 2 . . . 8 1 . . Energy Discharges 13 | . . . . . . . 3 . 4 . . . 4 1 . 1 Parts Rejected 2 | . . . . . . . . . . . . . 1 . . 1 Data Loss (minor) 13 | . . . . . 2 1 1 . 3 . . . 3 2 1 . Data Loss (major) 2 | . . . . . . . . . 2 . . . . . . . Misfires 2 | . . . . . . . 1 . 1 . . . . . . . Weapon Failures 3 | . . . . . . . . . . . . . . 2 . 1 Overload Shots . | . . . . . . . . . . . . . . . . . Overflow Damage 483 | . . 65 . 18 1 140 14 . 10 . 57 9 99 . 5 65 Projectiles 149 | . . . . 11 1 . . . . . 47 9 58 . 5 18 Explosions 163 | . . 65 . 7 . . 14 . 10 . 10 . 10 . . 47 Melee 171 | . . . . . . 140 . . . . . . 31 . . . Knockbacks 18 | . . . . . 1 . . . . . 2 2 4 2 1 6 Impact 1 | . . . . . . . . . . . . . 1 . . . Kinetic 16 | . . . . . 1 . . . . . 2 2 3 1 1 6 Secondary 1 | . . . . . . . . . . . . . . 1 . . Self-Inflicted Damage 620 | . 30 160 . 53 . . 41 . . . 53 . 30 . . 253 Shots 18 | . 1 6 . 2 . . 2 . . . 2 . . . . 5 Rammed 8 | . . 5 . . . . . . . . . . 1 . . 2 Targets Rammed 8 | . . 5 . . . . . . . . . . 1 . . 2 Kicked . | . . . . . . . . . . . . . . . . . Crushed . | . . . . . . . . . . . . . . . . . Highest Temperature 682 | 72 209 195 214 421 321 237 404 . 389 . 359 657 184 209 248 682 Average Temperature 113 | 38 71 45 78 152 101 108 181 . 133 . 124 213 32 76 88 219 Received Heat Transfer 3899 | . 36 732 . 369 579 . . . 205 . 126 360 350 92 9 1041 Effects 30 | . . . . . . . 4 . 4 . 1 8 . . . 13 Shutdowns 3 | . . . . . . . . . 1 . . 1 . . . 1 Energy Bleed 4 | . . . . . . . . . . . . 1 . . . 3 Interference 10 | . . . . . . . 3 . 1 . 1 2 . . . 3 Matter Decay 3 | . . . . . . . 1 . 1 . . . . . . 1 Short Circuit 3 | . . . . . . . . . . . . 2 . . . 1 Damage (minor) 6 | . . . . . . . . . 1 . . 2 . . . 3 Damage (core) 1 | . . . . . . . . . . . . . . . . 1 Siege Activations 9 | . . . . . . . . . . . . . 2 3 . 4 Total Turns 158 | . . . . . . . . . . . . . 77 47 . 34 Longest Duration 58 | . . . . . . . . . . . . . 58 29 . 14 Robots Corrupted . | . . . . . . . . . . . . . . . . . Combat Hostiles . | . . . . . . . . . . . . . . . . . Parts Fried 10 | . . 5 . . . . . . . . . . . . . 5 Impact Corruptions 2 | . . 1 . . . . . . . . . . 1 . . . Robots Melted 12 | . . . . . 2 . . . 1 . 1 2 4 1 1 . Combat Hostiles 10 | . . . . . 2 . . . 1 . 1 2 2 1 1 . Parts Melted 36 | . . 2 3 . 6 . . . 4 . 1 1 7 2 9 1 Heat Transferred 14865 | 50 300 2864 1162 656 2359 . 100 . 628 . 1421 424 2350 1122 645 784 Parts Sabotaged 1 | . . . . . . . . . . . . . . . . 1 Parts Stolen . | . . . . . . . . . . . . . . . . . Parts Stripped . | . . . . . . . . . . . . . . . . . Power Chain Reactions 8 | 1 3 4 . . . . . . . . . . . . . . Missiles Intercepted . | . . . . . . . . . . . . . . . . . Alert | -11 -10 -9 -9 -8 -7 -7 -7 -7 -6 -6 -6 -5 -5 -5 -5 -5 ------- Run | Scr Mat Mat Min Mat Fac Low Low Dat Pro Fac DSF Fac Ext Cet Arc Hub Peak Influence 1316 | 10 178 711 155 269 356 . . . . 157 407 478 667 1132 679 1316 Initial 372 | . 6 74 110 3 30 . . . . 157 109 213 215 372 372 237 Average 304 | 7 60 368 50 117 173 . . . . 157 274 307 306 637 635 747 Maximum Alert Level 4 | . . 3 . 1 1 . . . . . 2 2 2 4 2 4 Low Security (%) 41 | 100 100 26 100 83 61 . . . . 100 30 23 21 . . . Level 1 32 | . . 39 . 16 38 . . . . . 45 57 57 10 2 18 Level 2 18 | . . 23 . . . . . . . . 24 18 21 55 97 17 Level 3 6 | . . 10 . . . . . . . . . . . 27 . 46 Level 4 1 | . . . . . . . . . . . . . . 6 . 17 Level 5 . | . . . . . . . . . . . . . . . . . High Security . | . . . . . . . . . . . . . . . . . Max Security . | . . . . . . . . . . . . . . . . . Sterilizations 1 | . . . . . . . . . . . 1 . . . . . Squads Dispatched 29 | . 3 4 . 2 4 . . . . . 1 4 2 . . 9 Investigation 8 | . 2 . . 1 1 . . . . . . . . . . 4 Extermination 1 | . . . . . 1 . . . . . . . . . . . Reinforcement 14 | . 1 3 . 1 2 . . . . . 1 2 2 . . 2 Assault 3 | . . 1 . . . . . . . . . 1 . . . 1 Garrison 3 | . . . . . . . . . . . . 1 . . . 2 Intercept . | . . . . . . . . . . . . . . . . . Construction Impeded 2 | . . 1 . . 1 . . . . . . . . . . . Haulers Reinforced 2 | . . . . . . . . . . . . 1 . . . 1 Active Scanning Responses . | . . . . . . . . . . . . . . . . . Cargo Convoy Interrupts 1 | . . . . . 1 . . . . . . . . . . . Stealth | -11 -10 -9 -9 -8 -7 -7 -7 -7 -6 -6 -6 -5 -5 -5 -5 -5 --------- Run | Scr Mat Mat Min Mat Fac Low Low Dat Pro Fac DSF Fac Ext Cet Arc Hub Distress Signals 19 | . 1 5 . 1 1 . . . . . . 1 3 2 . 5 Communications Jammed 1 | . . . . . . . . . . . . 1 . . . . Distress Signals 1 | . . . . . . . . . . . . 1 . . . . Times Spotted 260 | . 8 52 6 13 23 . 3 . 25 . 12 11 29 22 16 40 Peak Tracking Total 17 | . 3 8 3 4 4 . 3 . 8 . 3 5 5 5 2 17 Tactical Retreats 6 | . 2 . 2 . . . . . . . . . 1 . . 1 Traps | -11 -10 -9 -9 -8 -7 -7 -7 -7 -6 -6 -6 -5 -5 -5 -5 -5 ------- Run | Scr Mat Mat Min Mat Fac Low Low Dat Pro Fac DSF Fac Ext Cet Arc Hub Traps Triggered 12 | . 6 . . 1 4 . . . . . . 1 . . . . Indirectly . | . . . . . . . . . . . . . . . . . Trap Hack Attempts . | . . . . . . . . . . . . . . . . . Triggered . | . . . . . . . . . . . . . . . . . Disarmed . | . . . . . . . . . . . . . . . . . Reprogrammed . | . . . . . . . . . . . . . . . . . Reused . | . . . . . . . . . . . . . . . . . Traps Extracted . | . . . . . . . . . . . . . . . . . Installed . | . . . . . . . . . . . . . . . . . Triggered 2 | . . . . . 2 . . . . . . . . . . . Machines | -11 -10 -9 -9 -8 -7 -7 -7 -7 -6 -6 -6 -5 -5 -5 -5 -5 ---------- Run | Scr Mat Mat Min Mat Fac Low Low Dat Pro Fac DSF Fac Ext Cet Arc Hub Machines Disabled 45 | . 1 6 2 1 2 . . . 8 . . 5 8 2 3 7 Max in Single Turn 5 | . 1 4 1 1 1 . . . 5 . . 1 3 . 1 2 Garrison Access 2 | . . . . . . . . . . . . 1 . . . 1 Network Hub 2 | . . . . . . . . . . . . . . . . 2 Energy Cycler 2 | . . . . . . . . . . . . . 2 . . . Machines Sabotaged 1 | . . . . . . . . . . . . . . . . 1 Garrisons Compromised 1 | . . . . . 1 . . . . . . . . . . . Overloaded Fab Kills . | . . . . . . . . . . . . . . . . . Hacking | -11 -10 -9 -9 -8 -7 -7 -7 -7 -6 -6 -6 -5 -5 -5 -5 -5 --------- Run | Scr Mat Mat Min Mat Fac Low Low Dat Pro Fac DSF Fac Ext Cet Arc Hub Machines Accessed 42 | . 2 9 1 3 12 1 1 3 . 1 . . 3 2 . 4 Terminals 27 | . 1 7 . 2 7 . . . . 1 . . 3 2 . 4 Fabricators 2 | . . . . . 2 . . . . . . . . . . . Repair Stations 2 | . . 1 . . 1 . . . . . . . . . . . Recycling Units 5 | . 1 1 . 1 2 . . . . . . . . . . . Scanalyzers . | . . . . . . . . . . . . . . . . . Garrison Access . | . . . . . . . . . . . . . . . . . Total Hacks 114 | . 5 26 1 6 27 1 1 25 . 1 . . 10 3 . 8 Successful 69 | . 2 19 1 2 10 1 1 25 . 1 . . 2 . . 5 Failed 45 | . 3 7 . 4 17 . . . . . . . 8 3 . 3 Catastrophic 10 | . . 1 . 2 5 . . . . . . . 1 1 . . Database Lockouts . | . . . . . . . . . . . . . . . . . Manual 29 | . 1 8 . . 8 . . . 1 . . . 3 1 . 7 Terminals 69 | . 3 21 . 5 18 . . . . 1 . . 10 3 . 8 Fabricators 5 | . . . . . 5 . . . . . . . . . . . Repair Stations 5 | . . 4 . . 1 . . . . . . . . . . . Recycling Units 7 | . 2 1 . 1 3 . . . . . . . . . . . Scanalyzers . | . . . . . . . . . . . . . . . . . Garrison Access . | . . . . . . . . . . . . . . . . . Terminal Hacks 48 | . 1 10 1 1 5 1 1 25 . 1 . . 1 . . 1 Record 11 | . . . . . . . . 11 . . . . . . . . Part Schematic 11 | . . . . . . . . 11 . . . . . . . . Robot Analysis 2 | . . 1 . . 1 . . . . . . . . . . . Prototype ID Bank 4 | . . 1 . . . . . 3 . . . . . . . . Open Door 3 | . . . 1 . . 1 1 . . . . . . . . . Open DSF 1 | . . . . . . . . . . 1 . . . . . . Branch Access Points 2 | . . 1 . . 1 . . . . . . . . . . . Unreport Threat 4 | . . 3 . . . . . . . . . . 1 . . . Locate Traps 1 | . . . . . 1 . . . . . . . . . . . Recall Assault 1 | . . 1 . . . . . . . . . . . . . . Hauler Manifests 2 | . . 1 . 1 . . . . . . . . . . . . Registered Components 1 | . . 1 . . . . . . . . . . . . . . Registered Prototypes 1 | . . 1 . . . . . . . . . . . . . . Zone Layout 4 | . 1 . . . 2 . . . . . . . . . . 1 Fabricator Hacks 1 | . . . . . 1 . . . . . . . . . . . Build 1 | . . . . . 1 . . . . . . . . . . . Repair Station Hacks 4 | . . 4 . . . . . . . . . . . . . . Scan Component 2 | . . 2 . . . . . . . . . . . . . . Repair 2 | . . 2 . . . . . . . . . . . . . . Recycling Unit Hacks 4 | . . 1 . 1 2 . . . . . . . . . . . Retrieve Components 4 | . . 1 . 1 2 . . . . . . . . . . . Scanalyzer . | . . . . . . . . . . . . . . . . . Garrison Access Hacks . | . . . . . . . . . . . . . . . . . Unauthorized Hacks 12 | . 1 4 . . 2 . . . . . . . 1 . . 4 Terminals 11 | . . 4 . . 2 . . . . . . . 1 . . 4 Track 1 | . . 1 . . . . . . . . . . . . . . Assimilate 2 | . . 1 . . . . . . . . . . 1 . . . Botnet 2 | . . 1 . . 1 . . . . . . . . . . . Operators 2 | . . 1 . . 1 . . . . . . . . . . . Sabotage 4 | . . . . . . . . . . . . . . . . 4 Fabricators . | . . . . . . . . . . . . . . . . . Repair Stations . | . . . . . . . . . . . . . . . . . Recycling Units 1 | . 1 . . . . . . . . . . . . . . . Tunnel 1 | . 1 . . . . . . . . . . . . . . . Scanalyzers . | . . . . . . . . . . . . . . . . . Garrison Access . | . . . . . . . . . . . . . . . . . Data Cores Recovered . | . . . . . . . . . . . . . . . . . Used . | . . . . . . . . . . . . . . . . . Hacking Detections 25 | . 1 7 . 2 11 . . . . . . . 3 . . 1 Full Trace Events 3 | . . 1 . 1 1 . . . . . . . . . . . Feedback Events . | . . . . . . . . . . . . . . . . . Feedback Blocked . | . . . . . . . . . . . . . . . . . Robot Schematics Acquired . | . . . . . . . . . . . . . . . . . Robots Built 1 | . . . . . 1 . . . . . . . . . . . Authchips . | . . . . . . . . . . . . . . . . . Time 116 | . . . . . 116 . . . . . . . . . . . Total Robot Build Rating 3 | . . . . . 3 . . . . . . . . . . . Part Schematics Acquired 11 | . . . . . . . . 11 . . . . . . . . Parts Built . | . . . . . . . . . . . . . . . . . Authchips . | . . . . . . . . . . . . . . . . . Time . | . . . . . . . . . . . . . . . . . Total Part Build Rating . | . . . . . . . . . . . . . . . . . Parts Repaired 2 | . . 2 . . . . . . . . . . . . . . Time 70 | . . 70 . . . . . . . . . . . . . . Parts Recycled . | . . . . . . . . . . . . . . . . . Recycled Matter . | . . . . . . . . . . . . . . . . . Retrieved Matter . | . . . . . . . . . . . . . . . . . Retrieved Components 13 | . . 9 . 3 1 . . . . . . . . . . . Parts Scanalyzed . | . . . . . . . . . . . . . . . . . Part Schematics Acquired . | . . . . . . . . . . . . . . . . . Parts Damaged . | . . . . . . . . . . . . . . . . . Bothacking | -11 -10 -9 -9 -8 -7 -7 -7 -7 -6 -6 -6 -5 -5 -5 -5 -5 ------------ Run | Scr Mat Mat Min Mat Fac Low Low Dat Pro Fac DSF Fac Ext Cet Arc Hub Used RIF Installer . | . . . . . . . . . . . . . . . . . Robots Hacked . | . . . . . . . . . . . . . . . . . Non-combat . | . . . . . . . . . . . . . . . . . Combat . | . . . . . . . . . . . . . . . . . Robot Hacks Applied . | . . . . . . . . . . . . . . . . . Relay Couplers Released 2 | . . . . . . . . . . . . 2 . . . . Machine Destruction 2 | . . . . . . . . . . . . 2 . . . . Fabnet Peak Effective % . | . . . . . . . . . . . . . . . . . Robots Rewired 9 | . . . . . . . . . . . . . 9 . . . Allies Hacked 1 | . . . . . . . . . . . . . 1 . . . Hacks Repelled . | . . . . . . . . . . . . . . . . . Allies | -11 -10 -9 -9 -8 -7 -7 -7 -7 -6 -6 -6 -5 -5 -5 -5 -5 -------- Run | Scr Mat Mat Min Mat Fac Low Low Dat Pro Fac DSF Fac Ext Cet Arc Hub Total Allies 26 | . . 1 . . 4 . . . 1 . . . 15 5 . . Largest Group 7 | . . 1 1 . 1 . . . 1 . . . 7 7 5 4 Highest-Rated Group 634 | . . 10 10 . 31 . . . 95 . . . 346 634 539 380 Highest-Rated Ally 159 | . . 10 10 . 31 . . . 95 . . . 159 159 159 95 Total Orders 5 | . . . . . 1 . . . 1 . . 3 . . . . AID 1 | . . . . . 1 . . . . . . . . . . . EXPLORE 2 | . . . . . . . . . 1 . . 1 . . . . RETURN 2 | . . . . . . . . . . . . 2 . . . . Ally Attacks 292 | . . . . . 5 . . . 5 . . . 110 111 19 42 Total Damage 7465 | . . . . . 103 . . . 186 . . . 2001 2992 723 1460 Kills 44 | . . . . . 1 . . . . . . . 15 15 2 11 Allies Corrupted . | . . . . . . . . . . . . . . . . . Allies Melted 1 | . . . . . . . . . 1 . . . . . . . Intel | -11 -10 -9 -9 -8 -7 -7 -7 -7 -6 -6 -6 -5 -5 -5 -5 -5 ------- Run | Scr Mat Mat Min Mat Fac Low Low Dat Pro Fac DSF Fac Ext Cet Arc Hub Robot Analysis Total 2 | . . 1 . . 1 . . . . . . . . . . . Derelict Logs Recovered 7 | . . . 2 . . 2 1 . 2 . . . . . . . Drone Launches 22 | . . . . . . . . . 3 . . 19 . . . . Drone Recoveries 8 | . . . . . . . . . . . . 8 . . . . Exploration | -11 -10 -9 -9 -8 -7 -7 -7 -7 -6 -6 -6 -5 -5 -5 -5 -5 ------------- Run | Scr Mat Mat Min Mat Fac Low Low Dat Pro Fac DSF Fac Ext Cet Arc Hub Turns Passed 11216 | 38 333 2129 936 491 1325 619 596 143 1040 14 424 396 1501 427 274 530 Spaces Moved 5432 | 19 251 782 353 177 771 446 382 96 545 6 121 176 760 190 97 260 Core 61 | . . . . . . . . . . . . . . . . 61 Treads 1759 | . . 706 353 . . . . . . . 1 . 213 190 97 199 Legs 343 | 19 251 73 . . . . . . . . . . . . . . Wheels 3269 | . . 3 . 177 771 446 382 96 545 6 120 176 547 . . . Hover . | . . . . . . . . . . . . . . . . . Flight . | . . . . . . . . . . . . . . . . . Fastest Speed 50 | 120 120 110 240 190 115 130 130 145 160 160 130 130 100 160 160 50 Average Speed 155 | 120 120 189 240 190 123 130 142 146 160 160 191 144 138 160 160 135 Slowest Speed 400 | 120 120 240 240 190 190 130 160 160 160 160 400 145 160 160 160 160 Overloaded Moves . | . . . . . . . . . . . . . . . . . Propulsion Burnouts . | . . . . . . . . . . . . . . . . . Robots Hopped . | . . . . . . . . . . . . . . . . . Cave-ins Triggered 1 | . . . . . 1 . . . . . . . . . . . Exploration Rate (%) 55 | 3 41 84 69 22 28 59 55 75 85 . 75 29 84 68 73 33 Regions Visited 16 Branch Regions 9 Pre-discovered Areas 6 | . 1 . 3 . . . . 1 1 . . . . . . . Known Exits Taken 5 | . . 1 . . 1 . . . 1 1 . 1 . . . . Unknown Exits Taken 10 | 1 1 . 1 1 . 1 1 1 . . . . 1 1 1 . Scrap Searched 6 | . . . 2 . . . 3 . 1 . . . . . . . Spaces Dug 44 | . . . . . 12 17 . . 2 . 8 5 . . . . Terrain Destroyed 642 | 5 6 41 . 31 50 17 29 . 106 . 45 16 57 11 10 218 Melee 35 | . . . . . 12 17 . . 2 . . 4 . . . . Projectile 107 | . . . . . 1 . . . 17 . 14 12 24 11 10 18 AOE 500 | 5 6 41 . 31 37 . 29 . 87 . 31 . 33 . . 200 Terrain Rammed . | . . . . . . . . . . . . . . . . . Walls Destroyed . | . . . . . . . . . . . . . . . . . Machines Disabled . | . . . . . . . . . . . . . . . . . Actions | -11 -10 -9 -9 -8 -7 -7 -7 -7 -6 -6 -6 -5 -5 -5 -5 -5 --------- Run | Scr Mat Mat Min Mat Fac Low Low Dat Pro Fac DSF Fac Ext Cet Arc Hub Total 7310 | 24 265 1225 395 267 1034 466 427 99 649 9 246 266 1100 281 186 371 Wait 644 | . . 206 12 24 90 . 21 . 23 . 8 29 100 50 66 15 Move 5416 | 18 250 781 352 176 770 445 381 95 544 5 120 175 759 189 96 260 Hop . | . . . . . . . . . . . . . . . . . Pick Up 175 | 1 3 46 3 7 22 . 7 . 11 . 16 6 39 3 1 10 Fast Attach 71 | . 1 8 . 4 9 . 5 2 2 . 6 3 14 6 2 9 Attach 66 | . . 10 4 4 6 . . . 4 1 7 5 11 . . 14 Detach 13 | . . . . 1 1 . 2 . . . 4 3 1 1 . . Swap 107 | . . 19 . 7 29 1 1 . 4 3 15 7 8 2 . 11 Drop 190 | . 2 33 . 9 38 1 3 2 13 . 26 7 30 9 3 14 Fire 495 | 5 9 117 24 35 47 . 7 . 46 . 44 27 59 21 18 36 Melee 38 | . . . . . 13 19 . . 2 . . 4 . . . . Ram 2 | . . . . . . . . . . . . . 1 . . 1 Kick . | . . . . . . . . . . . . . . . . . Crush 6 | . . 5 . . . . . . . . . . . . . 1 Escape Stasis 8 | . . . . . 8 . . . . . . . . . . . Rewire 79 | . . . . . 1 . . . . . . . 78 . . . Trap . | . . . . . . . . . . . . . . . . . Miscellaneous . | . . . . . . . . . . . . . . . . . Route ------- -11/Scrapyard -10/Materials -9/Materials (discovered 4 exits: *Mat x2 / *Min x2) -9/Mines -8/Materials -7/Factory (discovered 2 exits: *Low x2) -7/Lower Caves -7/Lower Caves (discovered 2 exits: *Fac / *Dat) -7/Data Miner -6/Proximity Caves -6/Factory -6/DSF -5/Factory (discovered 3 exits: [*Upp x2] / *Ext) -5/Extension (discovered 2 exits: [*Fac] / *Cet) -5/Cetus (discovered 2 exits: [*Fac] / *Arc) -5/Archives (discovered 2 exits: [*Fac] / *Hub) -5/Hub_04(d) (discovered 1 exit: [*Fac]) History --------- Turn | Location | Event 14 | -11/Scrapyard | Discovered new exit (range 2) 39 | -11/Scrapyard | Entered Materials 294 | -10/Materials | Discovered new exit (range 15) 307 | -10/Materials | Build established: Mutant 372 | -10/Materials | Entered another Materials area 372 | -9/Materials | Evolved 2 slots: Propulsion x1, Utility x1 480 | -9/Materials | Lost 3 parts (1p2w) 697 | -9/Materials | Identified exit to Mines 871 | -9/Materials | Build established: Scavenger-Mutant 926 | -9/Materials | Core integrity fell below 50% 1421 | -9/Materials | Discovered new exit (range 16) 1832 | -9/Materials | Repaired Corrupted Hvy. Assault Rifle 1859 | -9/Materials | Repaired Lgt. Treads 1900 | -9/Materials | Discovered new exit (range 9) 1972 | -9/Materials | First assault squad dispatched 2501 | -9/Materials | Entered Mines 2501 | -9/Mines | Accompanied by 1 ally 2511 | -9/Mines | Met a Derelict bent on vengeance 3126 | -9/Mines | Learned location of Storage (-8) 3137 | -9/Mines | Learned location of Zion (-6) 3209 | -9/Mines | Discovered new exit (range 5) 3272 | -9/Mines | Assembled infested the area 3293 | -9/Mines | Core integrity fell below 20% 3333 | -9/Mines | Lost 3 parts (2n1u) 3372 | -9/Mines | Found the Drone Emporium 3381 | -9/Mines | Found Prototype Device 3437 | -9/Mines | Entered Materials 3437 | -8/Materials | Evolved 2 slots: Propulsion x1, Weapon x1 3879 | -8/Materials | Discovered new exit (range 16) 3909 | -8/Materials | Build established: Scavenger-Skirmisher 3928 | -8/Materials | Entered Factory 3928 | -7/Factory | Evolved 2 slots: Propulsion x1, Utility x1 4399 | -7/Factory | Fabricated M-28 Smith? 4876 | -7/Factory | Identified exit to Lower Caves 5015 | -7/Factory | Cargo convoy interrupted 5079 | -7/Factory | Crushed by falling debris 5253 | -7/Factory | Entered Lower Caves 5378 | -7/Lower Caves | Build established: Mutant 5682 | -7/Lower Caves | Learned Factory terminal intel 5691 | -7/Lower Caves | Learned location of 1 exit from Proximity Caves 5862 | -7/Lower Caves | Discovered new exit (range 3) 5872 | -7/Lower Caves | Entered another Lower Caves area 5872 | -7/Lower Caves | Discovered new exit (range 11) 6415 | -7/Lower Caves | Discovered new exit (range 15) 6468 | -7/Lower Caves | Entered Data Miner 6468 | -7/Data Miner | Discovered new exit (range 6) 6499 | -7/Data Miner | Met Data Miner 6500 | -7/Data Miner | Build established: Hauler-Mutant 6550 | -7/Data Miner | Learned location of Section 7 (-3) 6550 | -7/Data Miner | Acquired the access code to Warlord's prototype stash 6573 | -7/Data Miner | Received God Mode back door access code from Data Miner 6611 | -7/Data Miner | Entered Proximity Caves 6612 | -6/Proximity Caves | Identified exit to Factory 6612 | -6/Proximity Caves | Identified Decoy Drone Bay 6649 | -6/Proximity Caves | Escorted by Enhanced Grunt 6933 | -6/Proximity Caves | Attracted the attention of an 0b10 checkpoint 7071 | -6/Proximity Caves | Attracted the attention of an 0b10 base 7088 | -6/Proximity Caves | Core integrity fell below 50% 7135 | -6/Proximity Caves | Destroyed 14 combat bots 7204 | -6/Proximity Caves | Acquired the password to a Derelict Tinkerer's latest research 7222 | -6/Proximity Caves | Found Prototype Special Weapon 7511 | -6/Proximity Caves | Caught by Unaware searching for contraband prototypes 7583 | -6/Proximity Caves | Spotted B-75 Beast 7651 | -6/Proximity Caves | Entered Factory 7651 | -6/Factory | Evolved 2 slots: Propulsion x1, Utility x1 7652 | -6/Factory | Loaded intel: 26 terminal locations 7659 | -6/Factory | Identified exit to DSF 7665 | -6/Factory | Entered DSF 7701 | -6/DSF | Additional patrols routed to DSF 7730 | -6/DSF | Build established: Hauler-Tank 7734 | -6/DSF | Discovered new exit (range 15) 7986 | -6/DSF | Sterilization system engaged 8006 | -6/DSF | Ambient heat levels rising (+10) 8021 | -6/DSF | Ambient heat levels rising (+10) 8036 | -6/DSF | Ambient heat levels rising (+10) 8051 | -6/DSF | Ambient heat levels rising (+10) 8066 | -6/DSF | Ambient heat levels rising (+10) 8081 | -6/DSF | Ambient heat levels rising (+10) 8089 | -6/DSF | Entered Factory 8089 | -5/Factory | Evolved 2 slots: Utility x2 8090 | -5/Factory | Identified exit to Extension 8105 | -5/Factory | Discovered new exit (range 12) 8152 | -5/Factory | Discovered new exit (range 164) 8410 | -5/Factory | Garrison activated, responded to threat 8478 | -5/Factory | Incoming assault squad redirected 8485 | -5/Factory | Entered Extension 8577 | -5/Extension | Rescued a captive Derelict 8579 | -5/Extension | Rescued a captive Derelict 9051 | -5/Extension | P-70 Sage assimilated allied AT-M68(h) 9382 | -5/Extension | Spotted B-75 Beast 9410 | -5/Extension | Destroyed B-75 Beast 9442 | -5/Extension | Spotted B-75 Beast 9443 | -5/Extension | Destroyed B-75 Beast 9530 | -5/Extension | Build established: Scavenger-Gunner 9599 | -5/Extension | Rescued A7 9619 | -5/Extension | Rescued a captive Derelict 9621 | -5/Extension | Rescued a captive Derelict 9668 | -5/Extension | Energy Cycler disabled 9669 | -5/Extension | Rescued a captive Derelict 9672 | -5/Extension | Rescued a captive Derelict 9672 | -5/Extension | Rescued a captive Derelict 9681 | -5/Extension | Rescued a captive Derelict 9683 | -5/Extension | Rescued a captive Derelict 9935 | -5/Extension | Discovered new exit (range 10) 9937 | -5/Extension | Discovered new exit (range 6) 9983 | -5/Extension | Build established: Gunner 9986 | -5/Extension | Entered Cetus 9986 | -5/Cetus | Accompanied by 7 allies (A7) 9991 | -5/Cetus | Acquired a Cetus Manufacturing Module code from A7 10008 | -5/Cetus | Spotted Cetus Guard 10008 | -5/Cetus | Spotted Cetus Guard 10013 | -5/Cetus | Spotted Cetus Guard 10013 | -5/Cetus | Spotted Cetus Guard 10020 | -5/Cetus | Destroyed Cetus Guard 10023 | -5/Cetus | Destroyed Cetus Guard 10030 | -5/Cetus | Allies destroyed Cetus Guard 10039 | -5/Cetus | Destroyed Cetus Guard 10072 | -5/Cetus | Destroyed 7 combat bots 10148 | -5/Cetus | Started Cetus Manufacturing Module 10173 | -5/Cetus | Manufactured an Enhanced Grunt 10198 | -5/Cetus | Manufactured an Enhanced Grunt 10223 | -5/Cetus | Manufactured an Enhanced Grunt 10248 | -5/Cetus | Manufactured an Enhanced Grunt 10273 | -5/Cetus | Manufactured an Enhanced Grunt 10280 | -5/Cetus | Discovered new exit (range 16) 10306 | -5/Cetus | Spotted Cetus Guard 10306 | -5/Cetus | Spotted Cetus Guard 10310 | -5/Cetus | Spotted Cetus Guard 10311 | -5/Cetus | Spotted Cetus Guard 10318 | -5/Cetus | Allies destroyed Cetus Guard 10319 | -5/Cetus | Allies destroyed Cetus Guard 10322 | -5/Cetus | Destroyed Cetus Guard 10324 | -5/Cetus | Allies destroyed Cetus Guard 10337 | -5/Cetus | Discovered new exit (range 16) 10351 | -5/Cetus | Met Revision 17 10413 | -5/Cetus | Entered Archives 10413 | -5/Archives | Accompanied by 5 allies (A7) 10451 | -5/Archives | Unable to access archive contents 10531 | -5/Archives | Discovered new exit (range 16) 10615 | -5/Archives | Discovered new exit (range 13) 10687 | -5/Archives | Entered Hub_04(d) 10687 | -5/Hub_04(d) | Accompanied by 4 allies 10727 | -5/Hub_04(d) | Incoming investigation squad redirected 10814 | -5/Hub_04(d) | Found Prototype Device 10814 | -5/Hub_04(d) | Identified Exp. Thermal Shield 10822 | -5/Hub_04(d) | Discovered new exit (range 15) 10915 | -5/Hub_04(d) | Build established: Scavenger-Tank 10975 | -5/Hub_04(d) | Spotted B-75 Beast 10984 | -5/Hub_04(d) | Garrison activated, responded to threat 11002 | -5/Hub_04(d) | Destroyed B-75 Beast 11103 | -5/Hub_04(d) | Network Hub disabled 11106 | -5/Hub_04(d) | Network Hub disabled 11119 | -5/Hub_04(d) | Spotted Lightning 11128 | -5/Hub_04(d) | Spotted Lightning 11132 | -5/Hub_04(d) | Spotted Lightning 11138 | -5/Hub_04(d) | Spotted Lightning 11140 | -5/Hub_04(d) | System corruption reached 10% 11141 | -5/Hub_04(d) | Spotted Lightning 11150 | -5/Hub_04(d) | Spotted Lightning 11171 | -5/Hub_04(d) | Core integrity fell below 50% 11172 | -5/Hub_04(d) | Released all parts (8) 11175 | -5/Hub_04(d) | Core integrity fell below 20% 11191 | -5/Hub_04(d) | Lost 14 parts (2p2n7u3w) 11217 | -5/Hub_04(d) | Destroyed by Lightning with EMDS Last Messages --------------- 11197_ Acquired 45 matter. 11197_ Acquired 3 matter. 11198_ Acquired 122 matter. 11199_ System corrupted: Matter fused (-9). 11199_ Dropped Magnetic Acceleration Cannon. 11199_ Acquired Cld. Plasma Rifle. 11200_ Acquired 27 matter. 11202_ Acquired Com. Wheel. 11206_ Acquired Neutron Cannon. 11209_ Acquired Antimatter Reactor. 11210_ Acquired Hrd. Medium Armor Plating. 11211_ K-01 Serf exits level. 11212_ Acquired 40 matter. 11212_ EMDS Slug penetrates Wall. 11212_ Penetrated by EMDS Slug. 11214_ EMDS Slug penetrates Wall. 11215_ CFXL/2XCQ K&XFM2&WJNLYD9PG 11216_ EMDS Slug penetrates Wall. 11217_ Wall collapses. 11217_ EMDS Slug penetrates Wall. Map ----- +----------------------------------------------------+ | ?????????????????????????????????????? | | ?????????????????????????????????????? | | ?????????????????????????????????????? | | ?????????????????????????????????????? | | ?????????????????????????????????????? | | ?????????????????????????????????????? | | ?????????????????????????????????????? | | ?????????????????????????????????????? | | ?????????????????????????????????????? | | ?????????????????????????????????????? | | ?????????????????????????????????????? | | ?????????????????????????????????????? | | ??????????????????????#####????? ??? | | ??????????????????????# #??? ! ??? | | ??????????????????????# < #?? ??? | | ??????????????????????# R #?? ??? | | ??????????????????????# #? ? #? | | ??????????????????????# # =/#? | | ??????????????????????+ # = #? | | ??????????????????????# =%# #? | | ??????????????????????# # ?? | | ??????????????????????# # ??? | | ????????????????###???# # ??? | | ?????????????#### #####*%%# """"??? | | ?????????????# !! #!=%# """"??? | | ?????????????# ] !!%#%[@# """"??? | | ?????????????# !![#!!%# """" ## | | ?????????????# !=%#%==# #? | | ?????????????# "" "*+%%!##+##+#####? | | ?????????????#"" """"!# %!%= #????? | | ?????????????#"T """"!# *!= #????? | | ?????????????#"" """"%# =! #????? | | ?????????????# # #????? | | ##???????????###########+;##### ###### | | #?????????????????# % #?# # # | | #?????????????????# "" h #?# # # | | #?????????????????# % h #?# # # | | !#?????????????????# """ ### # # | | =#??###????????????# + + # | | ######????????????# "" ##### # | | !" %#????????????# %h "#??# # | | !####[#????????????# "T" ##??# # | | ##?# #?????###????# """ #???# # | | ##??# #??################/############ | | ???# #### ## #?# ####? | | ??# + " "" """" ## ### """#? | | #?###### """" """" # "#? | | #??????#! """" """" # ! "#? | | #??????# """" """" + "#? | | " #??????# # ## """#? | +----------------------------------------------------+ Best States ------------- Heat Dissipation 92 Energy Generation 25 Energy Capacity 350 Matter Stores 300 Matter Capacity 300 Sight Range 16 Robot Scan Range 15 Terrain Scan Range 16 Terrain Scan Density 210 Jamming Range 12 EM Shielding 2 Armor Coverage 1350 Weapon Cycling 20 Evasion (%) 55 Targeting Accuracy 10 Recoil Reduction 6 Offensive Hacking 24 Authchip Count 4 Item Schematics ----------------- Combat Drone Bay | -7/Data Miner | Free Lgt. Regenerative Plating | -7/Data Miner | Free Cld. Aerolev Unit | -7/Data Miner | Free Gravity Neutralizing Apparatus | -7/Data Miner | Free Com. Ion Cannon | -7/Data Miner | Free Linear Gravjet | -7/Data Miner | Free Imp. Shock Absorption System | -7/Data Miner | Free KE Penetrator | -7/Data Miner | Free Adv. Drone Bay | -7/Data Miner | Free Railgun | -7/Data Miner | Free Lgt. Antimatter Reactor | -7/Data Miner | Free Robot Schematics ------------------ None Fabricated ------------ M-28 Smith | x1 | -7/Factory | Preloaded Alien Tech Used ----------------- None Achievements -------------- None Challenges ------------ None Game ------ Seed RemoteMobileMicroactuators Manual? 0 Play Time 03:01:53 Cumulative 544.0 hours Start 2022.01.15 @ 20:57:35 End 2022.01.16 @ 06:54:11 Sessions 3 Manual Loads 0 Difficulty Rogue Special Mode None Game No. 124 Rogue 93 Adventurer 31 Explorer 0 Win Type - Total 27 Types 22/0/2/3/0/0/0/0/0 Lore% 74 Gallery% 82 Achievement% 64 Wizard Run 0 Options --------- ASCII 0 Keyboard 0 Movement Arrows Keybinds 0 Fullscreen 1 Font 20/Terminus Map View 66x50 Tactical HUD 1 Map Filters NONE Filters NONE Steam 1 RUN: 16e6023d-f3d2-4e79-b470-92bee78663f2